[Event "IIFL Wealth  4th Mumbai Junior U-13"]
[Site "Mumbai"]
[Date "2019.01.06"]
[Round "8"]
[White "Rout Yashita"]
[Black "Balkawade Om"]
[Result "1-0"]
[ECO "C14"]
[WhiteElo "1264"]
[BlackElo "1157"]
[Annotator "NA"]
[PlyCount "121"]
[EventDate "2018.12.30"]
[EventType "swiss"]
[EventCountry "IND"]
[SourceTitle "playchess.com"]
[Source "ChessBase"]
[SourceQuality "1"]
[TimeControl "40/5400+30:1800+30"]

1. e4 {[%emt 0:00:42]} e6 {[%emt 0:00:00]} 2. d4 {[%emt 0:00:17]} d5 {[%emt 0:00:00]} 3. Nc3 {[%emt 0:00:11]} Nf6 {[%emt 0:00:00]} 4. Bg5 {[%emt 0:01:17]} Be7 {[%emt 0:00:07]} 5. e5 {[%emt 0:00:40]} Nfd7 {[%emt 0:00:07]} 6. Bxe7 {[%emt 0:00:44]} Qxe7 {[%emt 0:00:10]} 7. f4 {[%emt 0:01:00]} a6 {[%emt 0:00:26]} 8. Nf3 {[%emt 0:00:45]} c5 {[%emt 0:00:21]} 9. Be2 {[%emt 0:01:01]} Nc6 {[%emt 0:00:33]} 10. Qd2 {[%emt 0:01:04]} Nb6 {[%emt 0:04:14]} 11. Rd1 {[%emt 0:05:24]} Bd7 {[%emt 0:05:27]} 12. O-O {[%emt 0:07:19]} c4 {[%emt 0:08:32]} 13. Kh1 {[%emt 0:03:01]} O-O-O {[%emt 0:03:52]} 14. a3 {[%emt 0:11:24]} Rdg8 {[%emt 0:01:16]} 15. Qe1 {[%emt 0:01:14]} h6 {[%emt 0:01:30]} 16. Qf2 {[%emt 0:08:44]} f6 {[%emt 0:04:22]} 17. exf6 {[%emt 0:06:44]} gxf6 {[%emt 0:01:12]} 18. Rde1 {[%emt 0:00:36]} Qg7 {[%emt 0:10:20]} 19. Rg1 {[%emt 0:02:41]} f5 {[%emt 0:10:14]} 20. Ne5 {[%emt 0:07:52]} Nxe5 {[%emt 0:00:49]} 21. dxe5 {[%emt 0:00:14]} Na8 {[%emt 0:05:29]} 22. b3 {[%emt 0:01:11]} cxb3 {[%emt 0:01:22]} 23. cxb3 {[%emt 0:00:07]} Kb8 {[%emt 0:00:54]} 24. b4 {[%emt 0:01:32]} Rc8 {[%emt 0:05:41]} 25. Rc1 {[%emt 0:00:38]} Rhd8 {[%emt 0:06:48]} 26. Qd4 {[%emt 0:01:04]} Nc7 {[%emt 0:06:00]} 27. a4 {[%emt 0:01:07]} Qf8 {[%emt 0:01:17]} 28. b5 {[%emt 0:08:32]} a5 {[%emt 0:03:49]} 29. Rb1 {[%emt 0:01:57]} Na8 {[%emt 0:01:04]} 30. Rgc1 {[%emt 0:03:05]} Qc5 {[%emt 0:03:22]} 31. Qd2 {[%emt 0:00:13]} Qb6 {[%emt 0:01:49]} 32. h3 {[%emt 0:07:09]} Rc7 {[%emt 0:01:43]} 33. Rg1 {[%emt 0:02:40]} Rdc8 {[%emt 0:01:04]} 34. Rbc1 {[%emt 0:00:07]} Qc5 {[%emt 0:06:22]} 35. Na2 {[%emt 0:01:51]} Qb6 {[%emt 0:00:27]} 36. Rxc7 {[%emt 0:00:38]} Rxc7 {[%emt 0:00:29]} 37. g4 {[%emt 0:00:29]} Rc5 {[%emt 0:01:27]} 38. gxf5 {[%emt 0:01:00]} exf5 {[%emt 0:00:38]} 39. Nc1 {[%emt 0:01:16]} Qc7 {[%emt 0:03:27]} 40. Nb3 {[%emt 0:00:00]} Rc2 {[%emt 0:00:00]} 41. Qe1 {[%emt 0:02:27]} Rc3 {[%emt 0:03:06]} 42. Rg3 {[%emt 0:00:52]} d4 {[%emt 0:02:10]} 43. Rxc3 {[%emt 0:02:49]} dxc3 {[%emt 0:01:12]} 44. Bd3 {[%emt 0:00:42]} Be6 {[%emt 0:04:47]} 45. Nd4 {[%emt 0:00:37]} Bd5+ {[%emt 0:04:05]} 46. Kh2 {[%emt 0:00:30]} Qg7 {[%emt 0:02:29]} 47. Qf2 {[%emt 0:00:14]} Nc7 {[%emt 0:06:13]} 48. Nxf5 {[%emt 0:01:38]} Qf8 {[%emt 0:01:17]} 49. Nd6 {[%emt 0:01:58]} Qg7 {[%emt 0:02:19]} 50. b6 {[%emt 0:07:46]} Ne6 {[%emt 0:00:52]} 51. Be4 {[%emt 0:01:05]} Bxe4 {[%emt 0:01:53]} 52. Nxe4 {[%emt 0:00:08]} c2 {[%emt 0:01:12]} 53. Qd2 {[%emt 0:01:38]} Ka8 {[%emt 0:03:57]} 54. Qxc2 {[%emt 0:00:45]} Qf8 {[%emt 0:00:48]} 55. Qd2 {[%emt 0:00:38]} Qxf4+ {[%emt 0:01:45]} 56. Qxf4 {[%emt 0:00:05]} Nxf4 {[%emt 0:00:06]} 57. Kg3 {[%emt 0:00:22]} Ne6 {[%emt 0:01:30]} 58. Kg4 {[%emt 0:00:08]} Kb8 {[%emt 0:00:34]} 59. Kf5 {[%emt 0:00:48]} Nd4+ {[%emt 0:00:13]} 60. Kg6 {[%emt 0:00:07]} Kc8 {[%emt 0:00:17]} 61. Nc5 {[%emt 0:00:11]} 1-0

[Event "IIFL Wealth  4th Mumbai Junior U-13"]
[Site "Mumbai"]
[Date "2019.01.06"]
[Round "8"]
[White "Tambe Shardul"]
[Black "Marium Fatima"]
[Result "1-0"]
[ECO "D53"]
[WhiteElo "1250"]
[BlackElo "1494"]
[Annotator "NA RC"]
[PlyCount "120"]
[EventDate "2018.12.30"]
[EventType "swiss"]
[EventCountry "IND"]
[SourceTitle "playchess.com"]
[Source "ChessBase"]
[SourceQuality "1"]
[TimeControl "40/5400+30:1800+30"]

1. d4 {[%emt 0:00:00]} Nf6 {[%emt 0:00:00]} 2. c4 {[%emt 0:00:00]} e6 {[%emt 0:00:00]} 3. Nc3 {[%emt 0:00:00]} d5 {[%emt 0:00:00]} 4. Bg5 {[%emt 0:00:00]} Be7 {[%emt 0:00:00]} 5. Nf3 {[%emt 0:00:00]} b6 {[%emt 0:01:31]} 6. cxd5 {[%emt 0:00:59]} Nxd5 {[%emt 0:00:27]} 7. Nxd5 {[%emt 0:02:41]} exd5 {[%emt 0:02:23]} 8. Bxe7 {[%emt 0:03:49]} Qxe7 {[%emt 0:00:10]} 9. a3 {[%emt 0:00:13]} O-O {[%emt 0:02:28]} 10. e3 {[%emt 0:02:02]} Bg4 {[%emt 0:00:40]} 11. Be2 {[%emt 0:00:45]} Nd7 {[%emt 0:01:56]} 12. Rc1 {[%emt 0:02:27]} Qd6 {[%emt 0:06:41]} 13. Qc2 {[%emt 0:01:17]} Bxf3 {[%emt 0:00:38]} 14. Bxf3 {[%emt 0:00:51]} c5 {[%emt 0:05:50]} 15. dxc5 {[%emt 0:06:05]} bxc5 {[%emt 0:01:41]} 16. Rd1 {[%emt 0:02:34]} Nb6 {[%emt 0:02:43]} 17. O-O {[%emt 0:00:47]} Rad8 {[%emt 0:01:18]} 18. Rd2 {[%emt 0:20:55]} Rfe8 {[%emt 0:06:56]} 19. Rc1 {[%emt 0:16:16]} c4 {[%emt 0:04:02]} 20. Rd4 {[%emt 0:00:24]} Qe5 {[%emt 0:04:29]} 21. Rcd1 {[%emt 0:05:34]} Rd6 {[%emt 0:02:30]} 22. g3 {[%emt 0:04:49]} Ree6 {[%emt 0:07:23]} 23. Qd2 {[%emt 0:06:31]} h6 {[%emt 0:06:35]} 24. Qa5 {[%emt 0:09:55]} Rf6 {[%emt 0:03:39]} 25. Bg2 {[%emt 0:01:01]} Qf5 {[%emt 0:03:16]} 26. Qd2 {[%emt 0:02:03]} Rd7 {[%emt 0:06:15]} 27. e4 {[%emt 0:06:44]} Qe5 {[%emt 0:04:25]} 28. exd5 {[%emt 0:01:04]} Rfd6 {[%emt 0:01:14]} 29. Re1 {[%emt 0:01:05]} Qf6 {[%emt 0:01:03]} 30. Re8+ {[%emt 0:00:40]} Kh7 {[%emt 0:00:09]} 31. Rf4 {[%emt 0:00:24]} Qg5 {[%emt 0:01:13]} 32. Qc2+ {[%emt 0:02:09]} f5 {[%emt 0:01:38]} 33. Rxf5 {[%emt 0:01:00]} Qg6 {[%emt 0:00:33]} 34. Be4 {[%emt 0:01:16]} Qxe8 {[%emt 0:00:49]} 35. Rf8+ {[%emt 0:00:01]} Qg6 {[%emt 0:00:23]} 36. Bxg6+ {[%emt 0:00:16]} Rxg6 {[%emt 0:00:07]} 37. Rh8+ {[%emt 0:00:06]} Kxh8 {[%emt 0:00:14]} 38. Qxg6 {[%emt 0:00:06]} Rxd5 {[%emt 0:00:08]} 39. Kf1 {[%emt 0:01:08]} Rd8 {[%emt 0:01:33]} 40. Qf7 {[%emt 0:00:00]} Rd7 {[%emt 0:00:00]} 41. Qe8+ {[%emt 0:03:27]} Kh7 {[%emt 0:00:21]} 42. Qe4+ {[%emt 0:00:14]} Kh8 {[%emt 0:00:20]} 43. Ke1 {[%emt 0:01:41]} Rd5 44. f4 {[%emt 0:01:21]} Rd8 {[%emt 0:03:57]} 45. g4 {[%emt 0:06:53]} Rf8 {[%emt 0:01:38]} 46. g5 {[%emt 0:00:55]} hxg5 {[%emt 0:02:50]} 47. fxg5 {[%emt 0:00:03]} Rc8 {[%emt 0:01:10]} 48. g6 {[%emt 0:02:56]} Kg8 {[%emt 0:01:15]} 49. Qe6+ {[%emt 0:00:11]} Kh8 {[%emt 0:00:11]} 50. Qh3+ {[%emt 0:00:03]} Kg8 {[%emt 0:00:15]} 51. Qh7+ {[%emt 0:00:10]} Kf8 {[%emt 0:00:03]} 52. Qh8+ {[%emt 0:00:05]} Ke7 {[%emt 0:00:04]} 53. Qxg7+ {[%emt 0:00:05]} Kd6 {[%emt 0:00:15]} 54. Qf6+ {[%emt 0:00:24]} Kd7 {[%emt 0:00:07]} 55. Qf7+ {[%emt 0:00:09]} Kd6 {[%emt 0:00:17]} 56. g7 {[%emt 0:00:06]} Rc7 {[%emt 0:00:27]} 57. Qf6+ {[%emt 0:00:29]} Kd5 {[%emt 0:00:13]} 58. g8=Q+ {[%emt 0:00:29]} Kc5 {[%emt 0:00:04]} 59. Qe5+ {[%emt 0:00:46]} Kc6 {[%emt 0:00:12]} 60. Qe4+ {[%emt 0:00:25]} Kc5 {[%emt 0:00:18]} 1-0

[Event "IIFL Wealth  4th Mumbai Junior U-13"]
[Site "Mumbai"]
[Date "2019.01.06"]
[Round "8"]
[White "Haldankar Dhruv"]
[Black "Shrey Nilkant"]
[Result "1/2-1/2"]
[ECO "C55"]
[WhiteElo "1245"]
[BlackElo "1466"]
[Annotator "NA"]
[PlyCount "95"]
[EventDate "2018.12.30"]
[EventType "swiss"]
[EventCountry "IND"]
[SourceTitle "playchess.com"]
[Source "ChessBase"]
[SourceQuality "1"]
[TimeControl "40/5400+30:1800+30"]

1. e4 {[%emt 0:00:00]} e5 {[%emt 0:00:00]} 2. Nf3 {[%emt 0:00:00]} Nc6 {[%emt 0:00:03]} 3. Bc4 {[%emt 0:00:14]} Nf6 {[%emt 0:00:12]} 4. d3 {[%emt 0:00:27]} Be7 {[%emt 0:00:08]} 5. c3 {[%emt 0:02:05]} O-O {[%emt 0:00:19]} 6. O-O {[%emt 0:00:19]} d6 {[%emt 0:00:05]} 7. Nbd2 {[%emt 0:10:02]} Na5 {[%emt 0:00:16]} 8. b4 {[%emt 0:01:13]} Nxc4 {[%emt 0:01:51]} 9. Nxc4 {[%emt 0:00:20]} h6 {[%emt 0:01:41]} 10. h3 {[%emt 0:19:48]} Be6 {[%emt 0:07:57]} 11. Ne3 {[%emt 0:03:23]} c6 {[%emt 0:04:31]} 12. Re1 {[%emt 0:05:21]} Qc7 {[%emt 0:11:27]} 13. Nf1 {[%emt 0:07:51]} d5 {[%emt 0:06:14]} 14. exd5 {[%emt 0:10:19]} cxd5 {[%emt 0:02:17]} 15. Bb2 {[%emt 0:07:20]} Bd6 {[%emt 0:08:43]} 16. a3 {[%emt 0:09:40]} Rad8 {[%emt 0:21:30]} 17. Rc1 {[%emt 0:05:09]} a6 {[%emt 0:04:42]} 18. Qc2 {[%emt 0:01:37]} Bf5 {[%emt 0:09:39]} 19. Ne3 {[%emt 0:01:13]} Bh7 {[%emt 0:07:09]} 20. Red1 {[%emt 0:04:10]} b5 {[%emt 0:01:34]} 21. Qb3 {[%emt 0:01:30]} Rfe8 {[%emt 0:04:26]} 22. c4 {[%emt 0:01:18]} bxc4 {[%emt 0:00:38]} 23. dxc4 {[%emt 0:00:04]} d4 {[%emt 0:00:23]} 24. c5 {[%emt 0:00:09]} dxe3 {[%emt 0:00:25]} 25. cxd6 {[%emt 0:00:04]} exf2+ {[%emt 0:00:08]} 26. Kf1 {[%emt 0:00:49]} Qb6 {[%emt 0:01:15]} 27. Nxe5 {[%emt 0:00:47]} Rxe5 {[%emt 0:01:08]} 28. Bxe5 {[%emt 0:00:04]} Qb5+ {[%emt 0:00:05]} 29. Kxf2 {[%emt 0:00:09]} Qxe5 {[%emt 0:00:37]} 30. d7 {[%emt 0:00:34]} Rxd7 {[%emt 0:02:24]} 31. Rc8+ {[%emt 0:00:33]} Ne8 {[%emt 0:00:01]} 32. Qe3 {[%emt 0:05:15]} Qf5+ {[%emt 0:02:04]} 33. Ke2 {[%emt 0:00:40]} Rd2+ {[%emt 0:01:29]} 34. Qxd2 {[%emt 0:00:52]} Qxc8 {[%emt 0:00:05]} 35. Rc1 {[%emt 0:00:54]} Qe6+ {[%emt 0:00:13]} 36. Qe3 {[%emt 0:00:29]} Bf5 {[%emt 0:00:59]} 37. Qxe6 {[%emt 0:00:09]} Bxe6 {[%emt 0:00:28]} 38. g4 {[%emt 0:00:42]} Kf8 {[%emt 0:00:41]} 39. Kd3 {[%emt 0:00:31]} Ke7 {[%emt 0:00:11]} 40. a4 {[%emt 0:00:00]} Nd6 {[%emt 0:00:00]} 41. Kd4 {[%emt 0:01:11]} Bd7 {[%emt 0:02:27]} 42. Re1+ {[%emt 0:00:30]} Kd8 {[%emt 0:05:14]} 43. Kc5 {[%emt 0:00:47]} Nc8 {[%emt 0:03:32]} 44. b5 {[%emt 0:03:08]} axb5 {[%emt 0:04:29]} 45. axb5 {[%emt 0:00:08]} Kc7 {[%emt 0:00:04]} 46. Ra1 {[%emt 0:00:47]} Kb7 {[%emt 0:05:34]} 47. b6 {[%emt 0:00:49]} f5 {[%emt 0:01:34]} 48. Rd1 1/2-1/2

[Event "IIFL Wealth  4th Mumbai Junior U-13"]
[Site "Mumbai"]
[Date "2019.01.06"]
[Round "8"]
[White "Kinkhabwala Hrithik"]
[Black "Raghu Ram Reddy Seelam"]
[Result "0-1"]
[ECO "C54"]
[WhiteElo "1244"]
[BlackElo "1472"]
[Annotator "NA"]
[PlyCount "174"]
[EventDate "2018.12.30"]
[EventType "swiss"]
[EventCountry "IND"]
[SourceTitle "playchess.com"]
[Source "ChessBase"]
[SourceQuality "1"]
[TimeControl "40/5400+30:1800+30"]

1. e4 {[%emt 0:00:00]} e5 {[%emt 0:00:59]} 2. Nf3 {[%emt 0:00:00]} Nc6 {[%emt 0:00:08]} 3. Bc4 {[%emt 0:00:00]} Bc5 {[%emt 0:00:07]} 4. c3 {[%emt 0:00:00]} Nf6 {[%emt 0:01:10]} 5. d3 {[%emt 0:00:00]} a6 {[%emt 0:00:14]} 6. O-O {[%emt 0:00:00]} d6 {[%emt 0:01:52]} 7. d4 {[%emt 0:06:17]} Ba7 {[%emt 0:03:22]} 8. h3 {[%emt 0:13:22]} O-O {[%emt 0:11:39]} 9. Re1 {[%emt 0:02:03]} h6 {[%emt 0:00:43]} 10. Bb3 {[%emt 0:06:44]} Re8 {[%emt 0:01:46]} 11. Bc2 {[%emt 0:01:07]} Bb6 {[%emt 0:09:07]} 12. Na3 {[%emt 0:04:40]} Ba7 {[%emt 0:08:10]} 13. dxe5 {[%emt 0:02:15]} dxe5 {[%emt 0:00:27]} 14. Qxd8 {[%emt 0:00:43]} Rxd8 {[%emt 0:02:53]} 15. Nc4 {[%emt 0:01:12]} Re8 {[%emt 0:00:40]} 16. Be3 {[%emt 0:01:23]} Bxe3 {[%emt 0:00:51]} 17. Nxe3 {[%emt 0:02:09]} Be6 {[%emt 0:02:31]} 18. Rad1 {[%emt 0:05:12]} Rad8 {[%emt 0:00:19]} 19. b3 {[%emt 0:00:33]} Kf8 {[%emt 0:01:12]} 20. c4 {[%emt 0:04:50]} Nd4 21. Nxd4 {[%emt 0:06:12]} Rxd4 {[%emt 0:06:38]} 22. Nd5 {[%emt 0:02:48]} Bxd5 {[%emt 0:04:12]} 23. exd5 {[%emt 0:00:44]} Rxd1 {[%emt 0:01:57]} 24. Rxd1 {[%emt 0:01:25]} Ke7 {[%emt 0:00:35]} 25. b4 {[%emt 0:08:33]} b6 {[%emt 0:09:28]} 26. Ba4 {[%emt 0:04:00]} Rd8 {[%emt 0:01:25]} 27. Bc6 {[%emt 0:00:47]} Kd6 {[%emt 0:03:21]} 28. Kf1 {[%emt 0:07:29]} Ne4 {[%emt 0:02:10]} 29. f3 {[%emt 0:02:02]} Ng3+ {[%emt 0:03:19]} 30. Ke1 {[%emt 0:03:49]} Nf5 {[%emt 0:01:31]} 31. Kd2 {[%emt 0:01:43]} Rb8 {[%emt 0:03:45]} 32. a4 {[%emt 0:02:06]} Nd4 {[%emt 0:00:45]} 33. b5 {[%emt 0:03:03]} a5 {[%emt 0:01:01]} 34. Kc3 {[%emt 0:01:07]} Nf5 {[%emt 0:01:19]} 35. Re1 {[%emt 0:01:24]} Nh4 {[%emt 0:01:08]} 36. Re2 {[%emt 0:00:33]} Rf8 {[%emt 0:01:51]} 37. Rf2 {[%emt 0:00:56]} f5 {[%emt 0:01:45]} 38. f4 {[%emt 0:01:46]} e4 {[%emt 0:09:02]} 39. Kd4 {[%emt 0:01:23]} Ng6 {[%emt 0:01:02]} 40. g4 {[%emt 0:00:00]} fxg4 {[%emt 0:00:00]} 41. hxg4 {[%emt 0:02:16]} Nxf4 {[%emt 0:07:41]} 42. Kxe4 {[%emt 0:01:42]} g5 {[%emt 0:00:30]} 43. Rh2 {[%emt 0:05:02]} Rh8 {[%emt 0:01:40]} 44. Kf5 {[%emt 0:10:54]} Rf8+ {[%emt 0:08:02]} 45. Ke4 {[%emt 0:00:25]} Rh8 {[%emt 0:00:04]} 46. Kf5 {[%emt 0:00:05]} Kc5 47. Kf6 {[%emt 0:00:08]} Kxc4 {[%emt 0:04:12]} 48. Kg7 {[%emt 0:00:06]} Rd8 {[%emt 0:00:10]} 49. Rxh6 {[%emt 0:00:52]} Kb4 {[%emt 0:07:08]} 50. Kf6 {[%emt 0:00:41]} Kxa4 {[%emt 0:02:05]} 51. Kxg5 {[%emt 0:00:10]} Nxd5 52. Kh5 {[%emt 0:02:52]} Kb4 {[%emt 0:02:06]} 53. g5 {[%emt 0:00:32]} a4 {[%emt 0:01:22]} 54. g6 {[%emt 0:03:51]} Nf4+ {[%emt 0:04:05]} 55. Kg4 {[%emt 0:01:38]} Nxg6 {[%emt 0:01:14]} 56. Rxg6 {[%emt 0:00:30]} a3 {[%emt 0:00:06]} 57. Rh6 {[%emt 0:01:04]} a2 {[%emt 0:00:36]} 58. Rh1 {[%emt 0:00:04]} Kb3 {[%emt 0:00:13]} 59. Kf5 {[%emt 0:01:52]} Rd2 {[%emt 0:01:16]} 60. Ra1 {[%emt 0:00:47]} Kb2 {[%emt 0:00:25]} 61. Rxa2+ {[%emt 0:00:02]} Kxa2 {[%emt 0:00:14]} 62. Ke6 {[%emt 0:00:18]} Kb3 {[%emt 0:00:22]} 63. Ke7 {[%emt 0:00:43]} Kb4 {[%emt 0:00:19]} 64. Ke6 {[%emt 0:00:17]} Kc5 {[%emt 0:00:26]} 65. Ke7 {[%emt 0:01:06]} Rb2 {[%emt 0:00:19]} 66. Kd7 {[%emt 0:00:50]} Rxb5 {[%emt 0:00:06]} 67. Kxc7 {[%emt 0:00:33]} Rb2 {[%emt 0:00:05]} 68. Kd7 {[%emt 0:00:35]} b5 {[%emt 0:00:05]} 69. Be4 {[%emt 0:00:14]} Rd2+ {[%emt 0:00:11]} 70. Kc7 {[%emt 0:00:22]} b4 {[%emt 0:00:05]} 71. Bh7 {[%emt 0:00:16]} b3 {[%emt 0:00:07]} 72. Bg6 {[%emt 0:00:02]} b2 {[%emt 0:00:03]} 73. Bf5 {[%emt 0:00:13]} Kc4 {[%emt 0:00:06]} 74. Kc6 {[%emt 0:00:21]} Kc3 {[%emt 0:00:06]} 75. Kc5 {[%emt 0:00:14]} Rc2 {[%emt 0:00:06]} 76. Kd5 {[%emt 0:00:33]} b1=Q 77. Bxc2 {[%emt 0:00:14]} Qxc2 {[%emt 0:00:16]} 78. Ke5 {[%emt 0:00:07]} Qg6 {[%emt 0:00:05]} 79. Kd5 {[%emt 0:00:11]} Kb4 {[%emt 0:00:15]} 80. Ke5 {[%emt 0:00:17]} Kc5 {[%emt 0:00:04]} 81. Kf4 {[%emt 0:00:17]} Kd4 {[%emt 0:00:08]} 82. Kf3 {[%emt 0:00:08]} Ke5 {[%emt 0:00:16]} 83. Ke3 {[%emt 0:00:08]} Qg3+ {[%emt 0:00:22]} 84. Ke2 {[%emt 0:00:36]} Kd4 {[%emt 0:00:14]} 85. Kd2 {[%emt 0:00:10]} Qf2+ {[%emt 0:00:03]} 86. Kc1 {[%emt 0:00:08]} Kc3 {[%emt 0:00:06]} 87. Kd1 {[%emt 0:00:06]} Qf1# {[%emt 0:00:07]} 0-1

[Event "IIFL Wealth  4th Mumbai Junior U-13"]
[Site "Mumbai"]
[Date "2019.01.06"]
[Round "8"]
[White "Ananya Parikh"]
[Black "Saukhya Savant"]
[Result "1-0"]
[ECO "C10"]
[WhiteElo "1235"]
[BlackElo "1122"]
[Annotator "NA"]
[PlyCount "45"]
[EventDate "2018.12.30"]
[EventType "swiss"]
[EventCountry "IND"]
[SourceTitle "playchess.com"]
[Source "ChessBase"]
[SourceQuality "1"]
[TimeControl "40/5400+30:1800+30"]

1. e4 {[%emt 0:00:00]} e6 {[%emt 0:00:00]} 2. d4 {[%emt 0:00:17]} d5 {[%emt 0:00:00]} 3. Nc3 {[%emt 0:00:35]} dxe4 {[%emt 0:00:16]} 4. Nxe4 {[%emt 0:00:50]} Nd7 {[%emt 0:00:50]} 5. Nf3 {[%emt 0:01:06]} Ngf6 {[%emt 0:00:50]} 6. Bg5 {[%emt 0:01:08]} Be7 {[%emt 0:01:49]} 7. Nxf6+ {[%emt 0:07:43]} Nxf6 {[%emt 0:01:21]} 8. c3 {[%emt 0:06:02]} h6 {[%emt 0:06:43]} 9. Be3 {[%emt 0:06:28]} O-O {[%emt 0:03:28]} 10. Bd3 {[%emt 0:05:56]} b6 {[%emt 0:06:29]} 11. Ne5 {[%emt 0:06:38]} Bb7 {[%emt 0:05:06]} 12. O-O {[%emt 0:05:57]} Rc8 {[%emt 0:02:50]} 13. Ng4 {[%emt 0:09:29]} Kh8 {[%emt 0:07:44]} 14. Nxf6 {[%emt 0:05:02]} Bxf6 {[%emt 0:00:28]} 15. Qh5 {[%emt 0:03:02]} Qd5 {[%emt 0:01:28]} 16. Qh3 {[%emt 0:03:50]} Rg8 {[%emt 0:06:10]} 17. c4 {[%emt 0:08:06]} Qc6 {[%emt 0:08:44]} 18. d5 {[%emt 0:07:47]} exd5 {[%emt 0:01:08]} 19. Bxh6 {[%emt 0:02:22]} Bh4 {[%emt 0:01:33]} 20. Bg5 {[%emt 0:04:46]} Rge8 {[%emt 0:07:50]} 21. Qxh4+ {[%emt 0:00:16]} Kg8 {[%emt 0:00:20]} 22. Qh7+ {[%emt 0:00:06]} Kf8 {[%emt 0:00:05]} 23. Qh8# {[%emt 0:00:04]} 1-0

[Event "IIFL Wealth  4th Mumbai Junior U-13"]
[Site "Mumbai"]
[Date "2019.01.06"]
[Round "8"]
[White "Dawda Vihaan"]
[Black "Arushi Srichandan"]
[Result "0-1"]
[ECO "B09"]
[WhiteElo "1212"]
[BlackElo "1100"]
[Annotator "NA"]
[PlyCount "112"]
[EventDate "2018.12.30"]
[EventType "swiss"]
[EventCountry "IND"]
[SourceTitle "playchess.com"]
[Source "ChessBase"]
[SourceQuality "1"]
[TimeControl "40/5400+30:1800+30"]

1. e4 {[%emt 0:00:00]} d6 {[%emt 0:00:00]} 2. d4 {[%emt 0:00:01]} Nf6 {[%emt 0:00:10]} 3. Nc3 {[%emt 0:00:50]} g6 {[%emt 0:00:12]} 4. f4 {[%emt 0:00:38]} Bg7 {[%emt 0:00:20]} 5. Nf3 {[%emt 0:01:03]} Nc6 {[%emt 0:01:47]} 6. h3 {[%emt 0:01:33]} a6 {[%emt 0:03:33]} 7. a4 {[%emt 0:01:43]} e5 {[%emt 0:14:25]} 8. d5 {[%emt 0:03:40]} Ne7 {[%emt 0:06:32]} 9. fxe5 {[%emt 0:01:53]} dxe5 {[%emt 0:00:46]} 10. Bd3 {[%emt 0:00:15]} c6 {[%emt 0:02:14]} 11. dxc6 {[%emt 0:02:47]} Nxc6 {[%emt 0:00:09]} 12. O-O {[%emt 0:00:18]} O-O {[%emt 0:02:50]} 13. Be3 {[%emt 0:01:16]} Be6 {[%emt 0:06:49]} 14. Qe2 {[%emt 0:04:44]} Nd4 {[%emt 0:04:29]} 15. Qf2 {[%emt 0:02:18]} Nxf3+ {[%emt 0:02:26]} 16. Qxf3 {[%emt 0:00:08]} Nd7 {[%emt 0:03:18]} 17. Rad1 {[%emt 0:01:47]} Qe7 {[%emt 0:00:19]} 18. Nd5 {[%emt 0:01:37]} Bxd5 {[%emt 0:01:12]} 19. exd5 {[%emt 0:00:10]} e4 {[%emt 0:03:53]} 20. Bxe4 {[%emt 0:00:50]} Rae8 {[%emt 0:00:29]} 21. Qg4 {[%emt 0:01:36]} Qxe4 {[%emt 0:00:40]} 22. Qxd7 {[%emt 0:00:55]} Qxe3+ {[%emt 0:00:23]} 23. Kh1 {[%emt 0:00:06]} Qe7 {[%emt 0:00:15]} 24. Qg4 {[%emt 0:00:11]} f5 {[%emt 0:01:22]} 25. Qc4 {[%emt 0:00:10]} Qd6 {[%emt 0:00:50]} 26. Qb3 {[%emt 0:00:19]} b6 {[%emt 0:01:40]} 27. Rfe1 {[%emt 0:00:48]} Re5 {[%emt 0:03:14]} 28. c4 {[%emt 0:02:23]} Rfe8 {[%emt 0:01:27]} 29. Rxe5 {[%emt 0:00:09]} Rxe5 {[%emt 0:01:05]} 30. Qg3 {[%emt 0:01:31]} Bf8 {[%emt 0:02:04]} 31. Qd3 {[%emt 0:02:10]} Bg7 {[%emt 0:02:30]} 32. Qg3 {[%emt 0:00:20]} Kf7 {[%emt 0:00:53]} 33. Qd3 {[%emt 0:02:03]} Re4 {[%emt 0:00:58]} 34. Qb3 {[%emt 0:02:11]} Qe7 {[%emt 0:03:47]} 35. Qg3 {[%emt 0:05:22]} Qe5 {[%emt 0:01:09]} 36. Qxe5 {[%emt 0:09:16]} Bxe5 {[%emt 0:00:25]} 37. b3 {[%emt 0:00:08]} Re3 {[%emt 0:00:23]} 38. b4 {[%emt 0:00:54]} Bd6 {[%emt 0:00:05]} 39. a5 {[%emt 0:00:21]} bxa5 {[%emt 0:00:07]} 40. c5 {[%emt 0:00:00]} axb4 {[%emt 0:00:00]} 41. cxd6 {[%emt 0:00:25]} Ke8 {[%emt 0:02:30]} 42. Rc1 {[%emt 0:00:26]} Rc3 {[%emt 0:00:43]} 43. Ra1 {[%emt 0:00:10]} b3 {[%emt 0:00:22]} 44. Kh2 {[%emt 0:00:28]} b2 {[%emt 0:00:38]} 45. Rb1 {[%emt 0:00:05]} Rb3 {[%emt 0:00:04]} 46. Kg1 {[%emt 0:00:10]} a5 {[%emt 0:00:09]} 47. Kf2 {[%emt 0:00:06]} a4 {[%emt 0:00:04]} 48. Ke2 {[%emt 0:00:04]} a3 {[%emt 0:00:03]} 49. Kd2 {[%emt 0:00:04]} a2 {[%emt 0:00:05]} 50. Rxb2 {[%emt 0:00:02]} Rxb2+ {[%emt 0:00:05]} 51. Kc3 a1=Q {[%emt 0:00:12]} 52. d7+ {[%emt 0:00:04]} Kxd7 {[%emt 0:00:20]} 53. Kd3 {[%emt 0:00:02]} Qc1 {[%emt 0:00:55]} 54. d6 Rd2+ 55. Ke3 {[%emt 0:01:19]} Qe1+ {[%emt 0:00:36]} 56. Kf3 {[%emt 0:00:03]} Qf2# {[%emt 0:00:13]} 0-1